bitfinex/quotes_ETHUSD_20250112
["timestamp","ask_amount","ask_price","bid_price","bid_amount"]
[1736676464426,2.15874,3242.7,3242.3,0.7646]
[1736676464590,2.23228786,3242.7,3242.3,0.7646]
[1736676464916,0.07354786,3242.7,3242.3,0.7646]
[1736676465420,0.07338684,3242.6,3242.3,0.7646]
[1736676465786,2.15857,3242.9,3242.3,0.7646]
[1736676466402,0.07341752,3242.8,3242.3,0.7646]
[1736676467730,2.23205752,3242.8,3242.3,0.7646]
[1736676473436,2.1587,3242.7,3242.3,0.7646]
[1736676473796,2.23208894,3242.7,3242.3,0.7646]
[1736676474501,0.07338894,3242.7,3242.3,0.7646]
[1736676475031,2.37859,3242.9,3242.3,0.7646]
[1736676475249,0.0732958,3242.6,3242.3,0.7646]
[1736676475737,2.37859,3242.9,3242.3,0.7646]
[1736676475738,2.15869,3242.7,3242.3,0.7646]
[1736676475941,0.07328046,3242.5,3242.3,0.7646]
[1736676476151,2.15869,3242.7,3242.3,0.7646]
[1736676476314,0.07326512,3242.4,3242.3,0.7646]
[1736676476527,2.15869,3242.7,3242.3,0.7646]
[1736676476722,0.07326512,3242.4,3242.3,0.7646]
[1736676477203,2.90916,3242.6,3241.9,0.803]
[1736676477634,0.07328046,3242.5,3241.9,0.803]
[1736676478194,0.07326512,3242.4,3241.9,0.803]
[1736676478397,0.7504,3242.6,3241.9,1.399235]
[1736676478629,0.07328046,3242.5,3241.9,1.399235]
[1736676478878,0.07328046,3242.5,3242.0,0.03084183]
[1736676479041,0.7504,3242.6,3241.9,1.399235]
[1736676480342,0.7504,3242.6,3242.0,0.03084183]
[1736676480703,0.07328046,3242.5,3241.9,1.399235]
[1736676482450,0.7504,3242.6,3241.9,1.399235]
[1736676482751,0.07326512,3242.4,3241.9,0.803]
[1736676482904,0.07328046,3242.5,3241.9,0.803]
[1736676483104,0.07316478,3242.3,3241.9,0.803]
[1736676483441,0.7504,3242.6,3241.9,0.803]
[1736676483442,0.07318012,3242.4,3241.9,0.803]
[1736676483601,0.07314943,3242.2,3241.9,0.803]
[1736676483805,0.7504,3242.6,3241.9,0.803]
[1736676483806,2.90917,3242.6,3241.9,0.803]
[1736676484201,2.90945,3242.2,3241.6,0.32158477]
[1736676484614,0.07313409,3242.1,3241.6,0.32158477]
[1736676484819,2.90945,3242.2,3241.6,0.32158477]
[1736676485134,0.07313409,3242.1,3241.6,1.55657955]
[1736676485338,2.17392,3242.4,3241.6,0.80434489]
[1736676485850,0.07309194,3242.3,3241.6,0.80434489]
[1736676486255,2.23205194,3242.3,3241.6,0.80434489]
[1736676494302,0.07309194,3242.3,3241.7,0.764]
[1736676494592,0.565,3242.7,3241.9,0.764]
[1736676494793,0.07140993,3242.2,3241.9,0.764]
[1736676494962,2.15886,3242.5,3241.9,0.764]
[1736676495168,0.07139459,3242.1,3241.9,0.764]
[1736676495497,0.07137924,3242.0,3241.9,0.764]
[1736676495801,2.15886,3242.5,3241.9,0.764]
[1736676495954,0.07130638,3242.0,3241.9,0.764]
[1736676496355,3.14673,3242.8,3241.9,2.92322]
[1736676496572,3.14673,3242.8,3242.0,0.03084181]
[1736676496897,0.07141642,3242.7,3242.0,0.03084181]
[1736676497726,0.07141642,3242.7,3242.1,5.54511317]
[1736676497854,0.7855,3243.0,3242.3,0.7772]
[1736676498051,0.07141732,3242.6,3242.4,0.03083773]
[1736676498249,0.7855,3243.0,3242.4,0.3275425]
[1736676498551,0.07146332,3242.9,3242.4,0.3275425]
[1736676498864,0.07146332,3242.9,3242.4,0.29670477]
[1736676499281,0.07146332,3242.9,3242.4,0.32754231]
[1736676499495,0.07146332,3242.9,3242.4,0.29670477]
[1736676500154,0.07146332,3242.9,3242.5,0.03083757]
[1736676500767,3.16388,3243.2,3242.5,0.03083757]
[1736676500969,0.07160582,3242.8,3242.5,0.03083757]
[1736676501166,0.7855,3243.2,3242.5,0.32636923]
[1736676501376,0.7855,3243.2,3242.5,0.03083567]
[1736676501699,0.7855,3243.2,3242.3,2.93615]
[1736676501870,0.07165182,3243.1,3242.3,2.93615]
[1736676502203,0.07165182,3243.1,3242.4,0.03083567]
[1736676502411,0.07165182,3243.1,3242.3,2.93615]
[1736676502551,0.07165182,3243.1,3242.3,3.49064832]
[1736676502753,0.07165182,3243.1,3242.3,0.7772]
[1736676503056,0.7855,3242.7,3241.9,0.7772]
[1736676503268,2.23049835,3242.6,3241.9,0.7772]
[1736676504057,2.15889,3242.4,3241.9,0.7772]
[1736676504504,0.07161415,3242.3,3241.9,0.7772]
[1736676505266,2.15877,3242.6,3241.9,0.7772]
[1736676505470,0.07147741,3242.2,3241.9,0.7772]
[1736676505786,2.15877,3242.6,3241.9,0.7772]
[1736676506119,0.07152342,3242.5,3241.9,0.7772]
[1736676506772,2.23037342,3242.5,3241.9,0.7772]
[1736676507133,0.8228,3242.2,3241.7,1.14916274]
[1736676507615,0.07130419,3242.1,3241.7,1.14916274]
[1736676508113,0.07128885,3242.0,3241.7,1.14916274]
[1736676508415,2.98184,3242.2,3241.7,1.14916274]
[1736676508621,0.07127351,3241.9,3241.7,1.14916274]
[1736676508788,2.98184,3242.2,3241.7,1.14916274]
[1736676508971,0.07125816,3241.8,3241.7,1.14916274]
[1736676509301,0.07125816,3241.8,3241.7,0.8278]
[1736676509615,2.98184,3242.2,3241.7,0.8278]
[1736676509799,0.07125816,3241.8,3241.7,0.8278]
[1736676510288,2.98184,3242.2,3241.7,0.8278]
[1736676510490,0.07119727,3241.8,3241.7,0.8278]
[1736676510674,2.1591,3242.1,3241.7,0.8278]
[1736676510875,0.07119727,3241.8,3241.5,0.8278]
[1736676511220,0.8228,3242.2,3241.6,0.03084581]
[1736676511421,2.98189,3242.2,3241.6,0.03084581]
[1736676511622,2.15913,3242.1,3241.5,0.8278]
[1736676511773,2.2303733,3242.1,3241.5,0.8278]
[1736676514480,0.0712433,3242.1,3241.5,0.8278]
[1736676514682,0.8228,3242.2,3241.5,0.8278]
[1736676514880,0.07122795,3242.0,3241.5,0.8278]
[1736676515193,0.8228,3242.2,3241.5,1.21366472]
[1736676515392,0.8228,3242.2,3241.5,0.8278]
[1736676515588,0.0712433,3242.1,3241.5,0.8278]
[1736676516906,0.8228,3242.2,3241.5,0.8278]
[1736676517093,0.07122795,3242.0,3241.5,0.8278]
[1736676517296,2.98184,3242.2,3241.5,0.8278]
[1736676517496,0.07121261,3241.9,3241.5,0.8278]
[1736676517827,2.98184,3242.2,3241.5,0.8278]
[1736676518195,0.0712433,3242.1,3241.5,0.8278]
[1736676518425,2.2303533,3242.1,3241.5,0.8278]
[1736676520925,2.15916,3242.0,3241.5,0.8278]
[1736676521225,2.23027869,3242.0,3241.1,0.8278]
[1736676521393,2.23027869,3242.0,3241.1,1.663559]
[1736676522424,0.07111869,3242.0,3241.2,0.85864872]
[1736676522721,2.98185,3242.2,3241.2,0.8278]
[1736676523018,0.07110334,3241.9,3241.3,0.03084719]
[1736676523219,0.07113403,3242.1,3241.3,0.03084719]
[1736676523390,0.071088,3241.8,3241.3,0.03084719]
[1736676523590,2.98185,3242.2,3241.4,0.8278]
[1736676523992,0.07113403,3242.1,3241.4,0.8278]
[1736676524294,0.07113403,3242.1,3241.4,1.12962672]
[1736676525515,0.07113403,3242.1,3241.4,0.8278]
[1736676525713,2.23023403,3242.1,3241.4,0.8278]
[1736676526924,0.07113403,3242.1,3241.4,0.8278]
[1736676527115,2.15916,3242.0,3241.4,0.8278]
[1736676527299,2.23027869,3242.0,3241.4,0.8278]
[1736676537139,0.07111869,3242.0,3241.4,0.8278]
[1736676537341,2.15923,3241.9,3241.4,0.8278]
[1736676537492,2.23012684,3241.9,3241.4,0.8278]
[1736676539832,0.07089684,3241.9,3241.4,0.8278]
[1736676540192,2.1591,3242.1,3241.4,0.8278]
[1736676540389,0.0708815,3241.8,3241.4,0.8278]
[1736676540707,0.07086616,3241.7,3241.4,0.8278]
[1736676541036,2.15917,3242.0,3241.4,0.8278]
[1736676541241,0.07085081,3241.6,3241.4,0.8278]
[1736676541536,0.07083546,3241.5,3241.4,0.8278]
[1736676541700,2.37899,3242.3,3241.1,0.7526]
[1736676541701,0.7719,3241.7,3241.1,0.7526]
[1736676541899,0.07081116,3241.5,3241.2,0.03084819]
[1736676542111,2.15929,3241.8,3241.2,0.03084819]
[1736676542407,0.07079582,3241.4,3241.2,0.03084819]
[1736676542611,2.15929,3241.8,3241.2,0.03084819]
[1736676542838,0.7719,3241.9,3241.2,0.03084819]
[1736676543010,0.07084186,3241.7,3241.2,0.03084819]
[1736676543213,0.0708572,3241.8,3241.2,0.89430623]
[1736676543414,0.07082651,3241.6,3241.2,0.89430623]
[1736676543633,0.07084186,3241.7,3241.2,0.89430623]
[1736676543799,0.7719,3241.9,3241.2,0.89430623]
[1736676544002,0.07082651,3241.6,3241.2,0.89430623]
[1736676544297,2.15917,3242.0,3241.4,0.7526]
[1736676544515,0.07081116,3241.5,3241.4,0.7526]
[1736676544845,2.15917,3242.0,3241.4,0.7526]
[1736676545245,0.07081181,3241.9,3241.4,0.7526]
[1736676545544,2.15918,3242.0,3241.4,0.7526]
[1736676545740,0.07079647,3241.8,3241.4,0.7526]
[1736676546039,2.15918,3242.0,3241.4,0.7526]
[1736676546241,0.07078112,3241.7,3241.4,0.7526]
[1736676546401,2.15918,3242.0,3241.4,0.7526]
[1736676546628,0.07076578,3241.6,3241.4,0.7526]
[1736676546805,2.15918,3242.0,3241.4,0.7526]
[1736676547003,0.07075043,3241.5,3241.4,0.7526]
[1736676547227,2.15918,3242.0,3241.4,0.7526]
[1736676547433,0.07068951,3241.5,3241.4,0.7526]
[1736676547951,2.15918,3242.0,3241.4,0.7526]
[1736676548098,0.07068951,3241.5,3241.4,0.7526]
[1736676548296,2.15918,3242.0,3241.4,0.7526]
[1736676548496,0.07068951,3241.5,3241.4,0.7526]
[1736676548702,2.15918,3242.0,3241.4,0.7526]
[1736676548943,0.07068951,3241.5,3241.4,0.7526]
[1736676549156,2.15894,3242.4,3241.5,0.8304]
[1736676549348,2.37879,3242.6,3241.7,0.8304]
[1736676549710,6.0793,3243.0,3241.8,0.8304]
[1736676550058,2.37851,3243.0,3242.0,0.8304]
[1736676550353,0.22,3243.0,3242.2,0.8304]
[1736676551123,2.15846,3243.1,3242.3,0.0308381]
[1736676552062,2.15846,3243.1,3242.4,0.8304]
[1736676554344,2.15849,3243.0,3242.4,0.8304]
[1736676564395,0.07109593,3242.9,3242.4,0.8304]
[1736676568496,0.9713,3243.4,3242.6,0.7517]
[1736676568798,0.07145096,3242.8,3242.6,0.7517]
[1736676569092,2.15831,3243.3,3242.6,0.7517]
[1736676569304,0.07144776,3242.7,3242.6,0.7517]
[1736676569455,2.15831,3243.3,3242.6,0.7517]
[1736676569793,0.07152443,3243.2,3242.6,0.7517]
[1736676570597,2.22989443,3243.2,3242.6,0.7517]
[1736676570892,0.07152443,3243.2,3242.6,0.7517]
[1736676571095,2.15849,3243.0,3242.2,0.7517]
[1736676571296,2.15856,3242.9,3242.2,0.7517]
[1736676571591,2.23003843,3242.9,3242.2,0.7517]
[1736676574509,2.15876,3242.6,3241.9,0.7517]
[1736676574691,0.07141708,3242.5,3241.9,0.7517]
[1736676574866,2.23026708,3242.5,3241.9,0.7517]
[1736676578605,2.17398,3242.3,3241.7,0.32147038]
[1736676578968,0.07107963,3242.2,3241.6,0.7517]
[1736676580066,0.7513,3242.4,3241.6,0.7517]
[1736676580272,0.07105854,3242.3,3241.6,0.7517]
[1736676580508,0.07105854,3242.3,3241.6,1.04590869]
[1736676581786,0.07105854,3242.3,3241.6,2.91111]
[1736676582618,0.07105854,3242.3,3241.6,2.94195551]
[1736676583317,0.07105854,3242.3,3241.7,0.7517]
[1736676583629,0.565,3242.5,3241.7,0.7517]
[1736676583815,0.07079426,3242.2,3241.7,0.7517]
[1736676584112,0.07080322,3242.1,3241.7,1.04589555]
[1736676584284,3.13008,3242.6,3241.7,1.04589555]
[1736676584489,0.07086458,3242.5,3241.8,0.0308455]
[1736676584691,0.07086458,3242.5,3241.9,0.7517]
[1736676592201,2.1589,3242.4,3241.5,0.8052]
[1736676592733,0.0708339,3242.3,3241.5,0.8052]
[1736676594031,0.8011,3242.2,3241.5,0.8052]
[1736676594323,0.07080322,3242.1,3241.5,1.67082702]
[1736676594528,0.8011,3242.2,3241.5,1.67082702]
[1736676594730,0.07080322,3242.1,3241.5,1.67082702]
[1736676595035,0.8011,3242.2,3241.5,1.67082702]
[1736676595329,0.07080322,3242.1,3241.5,1.67082702]
[1736676595533,0.8011,3242.2,3241.6,0.9200337]
[1736676595742,0.07080322,3242.1,3241.5,0.8052]
[1736676595888,0.8011,3242.2,3241.5,0.8052]
[1736676596243,0.07080322,3242.1,3241.5,0.8052]
[1736676596738,0.8011,3242.2,3241.5,0.8052]
[1736676596888,0.07080322,3242.1,3241.5,0.8052]
[1736676597230,0.8011,3242.2,3241.5,0.8052]
[1736676597638,0.07072733,3242.1,3241.5,0.8052]
[1736676598000,0.8011,3242.2,3241.5,0.8052]
[1736676598238,0.07080322,3242.1,3241.5,0.8052]
[1736676598536,0.8011,3242.2,3241.6,0.03084546]
[1736676598718,0.07080322,3242.1,3241.5,1.67082702]
[1736676598892,0.8011,3242.2,3241.5,1.67082702]
[1736676599086,0.07080322,3242.1,3241.6,0.03084546]
[1736676599288,2.37879,3242.6,3241.6,0.03084546]
[1736676599495,0.8011,3242.4,3241.6,2.19026546]
[1736676599808,0.07082784,3242.3,3241.6,3.11337471]
[1736676600187,0.07082784,3242.3,3241.7,0.8052]
[1736676600392,0.8011,3242.6,3241.9,0.8052]
[1736676600639,0.07087065,3242.5,3242.1,2.15908]
[1736676600809,0.07087065,3242.5,3242.0,0.03084126]
[1736676601212,0.07087065,3242.5,3242.0,0.33036439]
[1736676601596,0.07087065,3242.5,3242.0,2.18998126]
[1736676602141,0.07087065,3242.5,3241.9,0.8052]
[1736676604742,0.07087065,3242.5,3242.0,0.03084128]
[1736676604908,0.8321,3242.8,3241.9,0.8052]
[1736676605246,0.07110778,3242.7,3241.9,0.8052]
[1736676605606,0.07110778,3242.7,3242.3,0.7991]
[1736676605938,0.0712746,3242.6,3242.4,0.03083746]
[1736676606138,0.8321,3243.1,3242.4,0.03083746]
[1736676606647,0.07134201,3243.0,3242.4,0.03083746]
[1736676607367,0.07134201,3243.0,3242.4,0.32972421]
[1736676608332,0.07134201,3243.0,3242.4,0.03083746]
[1736676610059,0.07134201,3243.0,3242.3,0.7991]
[1736676612065,0.07134201,3243.0,3242.4,0.03083732]
[1736676613236,2.22983201,3243.0,3242.3,0.7991]
[1736676613962,0.07134201,3243.0,3242.3,0.7991]
[1736676614267,0.8321,3242.8,3242.1,0.7991]
[1736676614436,0.8321,3242.8,3242.1,1.631929]
[1736676614638,0.0713734,3242.7,3242.1,1.631929]
[1736676615037,0.8321,3242.8,3242.1,1.631929]
[1736676615453,0.8321,3242.8,3242.0,5.37]
[1736676615454,0.07138954,3242.7,3242.0,5.37]
[1736676615753,2.15881,3242.6,3242.0,5.37]
[1736676615953,0.07135886,3242.5,3241.8,0.7991]
[1736676620987,0.8321,3242.4,3241.8,0.7991]
[1736676621190,0.06982907,3242.3,3241.8,0.7991]
[1736676621351,0.8321,3242.4,3241.8,1.72425493]
[1736676633081,0.8321,3242.4,3241.8,3.88353493]
[1736676634099,0.8024,3242.7,3241.9,2.19000138]
[1736676634448,0.101574,3242.6,3241.9,2.19000138]
[1736676635710,0.101574,3242.6,3241.9,2.19000138]
[1736676639897,0.101574,3242.6,3241.9,2.15916]
[1736676640415,0.101574,3242.6,3242.0,0.0308414]
[1736676640616,0.101574,3242.6,3241.9,2.15916]
[1736676640996,0.101574,3242.6,3242.0,0.0308414]
[1736676641790,0.101574,3242.6,3242.0,0.03084141]
[1736676641994,0.101574,3242.6,3242.0,2.18995141]
[1736676642215,0.101574,3242.6,3242.1,0.21899514]
[1736676644981,0.101574,3242.6,3242.2,0.85353914]
[1736676645134,0.8024,3242.7,3242.2,3.01251914]
[1736676645465,0.10146457,3242.6,3242.2,3.01251914]
[1736676645674,0.10146457,3242.6,3242.3,2.15895]
[1736676645824,0.10146457,3242.6,3242.4,0.33208657]
[1736676646025,0.7578,3242.9,3242.5,2.1588]
[1736676646384,2.15798,3243.8,3242.9,2.15855]
[1736676646385,0.7578,3243.8,3242.9,2.15855]
[1736676646675,0.7578,3243.8,3243.1,0.8227]
[1736676646966,0.7578,3243.8,3243.2,0.03083045]
[1736676647174,0.7578,3243.8,3243.1,2.98111]
[1736676647319,0.7578,3243.8,3243.1,3.28230404]
[1736676648254,0.7578,3243.8,3243.2,2.18917907]
[1736676648567,0.7578,3243.8,3243.2,2.15835]
[1736676650835,2.15772,3244.2,3243.3,0.03082842]
[1736676651158,0.7578,3244.1,3243.3,0.03082842]
[1736676651358,0.7578,3244.1,3243.4,0.21891784]
[1736676651527,0.7578,3244.1,3243.5,0.030827]
[1736676652665,0.7578,3244.1,3243.5,2.15814]
[1736676653157,0.0958226,3244.0,3243.5,2.15814]
[1736676654563,0.0958226,3244.0,3243.3,2.98098]
[1736676655715,0.0958226,3244.0,3243.3,2.15828]
[1736676655887,0.7578,3243.9,3243.2,5.37]
[1736676656090,0.7578,3243.9,3243.3,0.75284]
[1736676656269,0.09579392,3243.8,3243.3,0.75284]
[1736676658389,0.09579392,3243.8,3243.4,0.03082802]
[1736676660930,0.09579392,3243.8,3243.3,0.75284]
[1736676666152,0.09579392,3243.8,3243.4,0.03082798]
[1736676666307,0.09579392,3243.8,3243.4,0.64619478]
[1736676670256,0.09579392,3243.8,3243.5,2.1581]
[1736676670458,0.7861,3244.1,3243.6,2.15807]
[1736676670613,0.09260013,3243.7,3243.6,2.18889427]
[1736676670832,0.7861,3244.1,3243.6,2.18889427]
[1736676671061,0.09317161,3243.7,3243.6,2.97549611]
[1736676671210,0.7861,3244.1,3243.6,2.97549611]
[1736676671554,0.09317161,3243.7,3243.6,2.97549611]
[1736676671765,0.7861,3244.7,3243.7,0.8099]
[1736676671967,0.7861,3244.7,3243.9,0.8099]
[1736676672129,0.09014187,3244.6,3244.0,2.15777]
[1736676672324,0.09014187,3244.6,3244.1,0.296767]
[1736676674964,0.09014187,3244.6,3243.9,0.8099]
[1736676675833,0.09014187,3244.6,3243.9,6.1799]
[1736676677066,0.09014187,3244.6,3244.0,2.18863973]
[1736676677268,0.7861,3244.7,3244.0,2.18863973]
[1736676677417,0.09030098,3244.5,3244.0,2.18863973]
[1736676677618,0.7861,3244.7,3244.1,0.83685397]
[1736676678246,0.09031533,3244.6,3244.1,0.83685397]
[1736676678559,0.7861,3244.7,3244.1,0.83685397]
[1736676678867,0.09040646,3244.6,3244.1,0.83685397]
[1736676679018,0.7861,3244.7,3244.2,0.03081973]
[1736676679522,0.7861,3244.7,3244.3,0.30254237]
[1736676679839,0.09040646,3244.6,3244.3,0.30254237]
[1736676681273,0.09040646,3244.6,3244.2,0.03081975]
[1736676681473,0.7861,3244.7,3244.2,0.03081975]
[1736676681637,0.7861,3244.7,3244.1,0.83685397]
[1736676681824,0.7861,3244.7,3244.2,0.03081974]
[1736676682254,0.7861,3244.7,3244.1,0.83685397]
[1736676682552,0.7861,3244.7,3244.2,0.2994674]
[1736676683054,0.7861,3244.7,3244.3,0.03081975]
[1736676683255,0.08741162,3244.6,3244.3,0.03081975]
[1736676683453,0.08741162,3244.6,3244.3,2.18843975]
[1736676683673,0.08741162,3244.6,3244.3,2.99833975]
[1736676683957,0.7861,3245.0,3244.4,0.32978072]
[1736676684470,0.08747895,3244.9,3244.4,0.32978072]
[1736676685586,0.08747895,3244.9,3244.2,0.2994674]
[1736676687173,0.8265,3244.8,3244.2,0.2994674]
[1736676687487,0.08746017,3244.7,3244.2,2.4571574]
[1736676687686,0.8265,3244.8,3244.3,0.03081852]
[1736676687905,0.08746017,3244.7,3244.3,0.03081852]
[1736676688214,0.8265,3244.8,3244.4,0.24879759]
[1736676688366,0.8265,3244.8,3244.5,0.03081748]
[1736676688567,0.08764021,3244.7,3244.5,0.03081748]
[1736676688997,0.8265,3244.8,3244.5,0.03081748]
[1736676689184,0.08762587,3244.6,3244.5,0.03081757]
[1736676689513,0.08762587,3244.6,3244.5,0.27454109]
[1736676689916,0.8265,3244.8,3244.5,0.27454109]
[1736676690139,0.08764021,3244.7,3244.5,0.27454109]
[1736676690523,0.8265,3244.8,3244.5,0.27454109]
[1736676690699,0.08762587,3244.6,3244.5,0.24372352]
[1736676690901,2.15687,3245.5,3244.5,1.08944118]
[1736676691211,0.8265,3245.4,3244.7,2.15734]
[1736676691514,0.91424061,3245.4,3244.7,2.15734]
[1736676691868,0.91424061,3245.4,3244.7,5.37]
[1736676692217,0.8265,3245.3,3244.7,5.37]
[1736676692567,2.15705,3245.2,3244.7,5.37]
[1736676692817,0.8265,3245.1,3244.7,5.37]
[1736676693004,0.91425225,3245.1,3244.7,5.37]
[1736676694726,0.91425225,3245.1,3244.7,5.907]
[1736676696386,3.07135225,3245.1,3244.7,5.37]
[1736676696632,0.8265,3245.0,3244.7,5.37]
[1736676696787,0.8265,3245.0,3244.2,5.6694674]
[1736676696985,0.08818522,3244.9,3244.2,5.6694674]
[1736676697337,0.08818522,3244.9,3244.2,7.8271574]
[1736676697626,0.08818522,3244.9,3244.3,0.78271574]
[1736676703012,0.8265,3244.8,3244.3,0.78271574]
[1736676705343,2.15704,3245.2,3244.3,2.94032574]
[1736676705518,0.8253,3245.1,3244.4,0.83521848]
[1736676705718,0.8253,3245.1,3244.4,0.8044]
[1736676706049,0.0885491,3245.0,3244.4,0.83521849]
[1736676707144,0.0885491,3245.0,3244.4,0.03081849]
[1736676707507,0.0885491,3245.0,3244.3,2.94032574]
[1736676707702,0.0885491,3245.0,3244.4,0.03081849]
[1736676710155,0.625,3244.9,3244.4,0.03081849]
[1736676710546,0.08850603,3244.8,3244.4,0.03081849]
[1736676710753,0.08850603,3244.8,3244.4,0.97531965]
[1736676710916,0.625,3244.9,3244.4,0.97531965]
[1736676711255,0.08850603,3244.8,3244.4,0.97531965]
[1736676711554,0.625,3244.9,3244.4,0.97531965]
[1736676712056,0.08849996,3244.8,3244.4,0.97531965]
[1736676712537,0.625,3244.9,3244.4,0.97531965]
[1736676712734,0.08844056,3244.8,3244.4,0.97531965]
[1736676712939,0.625,3244.9,3244.4,0.97531965]
[1736676713146,0.08850986,3244.8,3244.4,0.97531965]
[1736676713610,0.625,3244.9,3244.4,0.97531965]
[1736676714152,0.08826024,3244.8,3244.4,3.10200116]
[1736676714653,0.625,3244.9,3244.6,2.96176]
[1736676714953,0.625,3244.9,3244.8,2.15729]
[1736676715838,0.625,3244.9,3244.6,0.8044]
[1736676716213,0.625,3244.9,3244.5,2.46764012]
[1736676717315,0.625,3244.9,3244.5,0.31020012]
[1736676717648,0.625,3244.9,3244.6,0.20591013]
[1736676717854,0.625,3244.9,3244.6,2.36333013]
[1736676718726,0.625,3244.9,3244.7,0.0308154]
[1736676718935,0.625,3244.9,3244.6,2.36333013]
[1736676719159,0.625,3244.9,3244.7,0.03081539]
[1736676719316,0.625,3244.9,3244.8,1.04381455]
[1736676719666,0.625,3244.9,3244.8,2.96169]
[1736676721998,0.625,3244.9,3244.8,5.99250353]
[1736676722291,0.625,3244.9,3244.8,5.96169]
[1736676724106,0.625,3244.9,3244.8,11.33169]
[1736676724945,0.625,3244.9,3244.8,11.32649]
[1736676725187,0.625,3244.9,3244.8,12.47973001]
[1736676725745,0.625,3244.9,3244.8,12.48723001]
[1736676726447,0.625,3244.9,3244.8,12.47973001]
[1736676726663,0.625,3244.9,3244.8,12.47223001]
[1736676732324,0.625,3244.9,3244.8,12.47973001]
[1736676732471,0.625,3244.9,3244.8,12.48723001]
[1736676735026,0.625,3244.9,3244.8,12.47223001]
[1736676735205,0.625,3244.9,3244.8,8.68053001]
[1736676735379,0.625,3244.9,3244.8,1.15324001]
[1736676735580,1.4043,3244.9,3244.6,5.37]
[1736676735776,1.4909011,3244.9,3244.6,5.37]
[1736676736270,1.4043,3244.9,3244.6,5.37]
[1736676736989,1.4043,3244.9,3244.7,0.0308158]
[1736676737174,1.4043,3244.9,3244.6,5.37]
[1736676738320,1.4043,3244.9,3244.3,7.52757]
[1736676738524,1.4043,3244.9,3244.3,9.540927]
[1736676738986,1.4043,3244.9,3244.4,0.03081797]
[1736676740426,1.4043,3244.9,3244.6,2.15737]
[1736676741710,1.4043,3244.9,3244.3,7.383357]
[1736676741899,1.4043,3244.9,3244.3,9.540977]
[1736676742096,1.4043,3244.9,3244.4,3.4116477]
[1736676742277,1.4043,3244.9,3244.6,2.15739]
[1736676742558,0.625,3244.9,3244.6,2.15739]
[1736676742940,0.625,3244.9,3244.6,0.03081607]
[1736676743270,0.625,3244.9,3244.7,2.15731]
[1736676743586,0.625,3244.9,3244.8,0.21881261]
[1736676743787,0.625,3244.9,3244.8,0.24962863]
[1736676744089,0.625,3244.9,3244.8,0.21881261]
[1736676744251,0.625,3244.9,3244.5,2.15748]
[1736676744636,0.7793,3244.8,3244.4,1.2540977]
[1736676745780,0.7793,3244.8,3244.5,0.03081778]
[1736676746086,0.7793,3244.8,3244.5,0.03081787]
[1736676746296,0.625,3244.9,3244.5,2.18830787]
[1736676746500,0.625,3244.9,3244.5,3.35171413]
[1736676747667,0.625,3244.9,3244.6,2.15737]
[1736676747867,0.625,3244.9,3244.7,5.37]
[1736676748451,0.625,3244.9,3244.7,7.52733]
[1736676749053,0.625,3244.9,3244.8,2.15729]
[1736676749248,0.625,3244.9,3244.8,2.94083349]
[1736676749792,0.625,3244.9,3244.8,2.910019]
[1736676753807,0.625,3244.9,3244.8,8.280019]
[1736676755283,0.625,3244.9,3244.8,9.086719]
[1736676760521,0.625,3244.9,3244.8,12.086719]
[1736676763708,0.625,3244.9,3244.8,11.280019]
[1736676763889,0.625,3244.9,3244.8,5.37]
[1736676764503,1.4424,3244.9,3244.8,5.37]
[1736676764918,1.52584542,3244.9,3244.8,5.37]
[1736676765349,0.61501138,3246.0,3244.8,0.8036]
[1736676765498,0.1000334,3246.5,3245.6,2.1567]
[1736676765499,0.7703,3246.4,3245.6,2.1567]
[1736676765701,0.7703,3246.4,3245.7,2.18748497]
[1736676765902,0.7703,3246.3,3245.3,0.8036]
[1736676766128,0.7703,3246.3,3245.0,8.8]
[1736676766129,0.7703,3246.0,3245.1,2.15705]
[1736676766312,0.05820136,3245.9,3245.2,3.0]
[1736676766522,0.7703,3245.8,3245.2,3.0]
[1736676766726,0.7703,3245.8,3244.6,0.8036]
[1736676766928,0.7703,3245.7,3244.7,2.1573]
[1736676767131,0.05601508,3245.6,3244.8,2.15729]
[1736676767336,2.15664,3245.8,3244.9,0.24654208]
[1736676767337,0.7703,3245.5,3244.9,0.24654208]
[1736676767560,0.05621743,3245.4,3244.9,0.215729]
[1736676768449,0.7703,3245.5,3244.9,2.372939]
[1736676768759,0.05607409,3245.4,3244.9,2.372939]
[1736676769864,0.05607409,3245.4,3245.0,0.03081309]
[1736676770038,0.7703,3245.5,3245.0,2.4283383]
[1736676770552,0.7703,3245.5,3245.0,0.2711883]
[1736676770737,0.7703,3245.5,3245.1,2.15708]
[1736676773158,0.7703,3245.5,3245.0,0.0308131]
[1736676773353,0.7703,3245.5,3245.3,2.15695]
[1736676780576,0.7703,3245.5,3245.0,0.0308131]
[1736676780577,0.7703,3245.5,3245.1,2.15708]
[1736676781611,1.3203,3246.1,3245.1,2.15708]
[1736676781804,0.55,3246.1,3245.2,0.03081086]
[1736676782096,0.55,3246.1,3244.9,5.96079]
[1736676782097,0.82652693,3246.0,3245.1,2.15709]
[1736676782308,0.05622693,3246.0,3245.2,0.8036]
[1736676782517,0.05622693,3246.0,3245.3,5.15696]
[1736676782666,0.7703,3246.3,3245.4,0.03080603]
[1736676783014,0.7703,3246.3,3245.9,2.15655]
[1736676789370,0.05474299,3246.2,3245.9,2.15655]
[1736676789623,0.7703,3246.3,3246.0,0.215655]
[1736676789821,0.05472866,3246.1,3246.0,0.215655]
[1736676789999,0.7703,3246.3,3246.0,0.215655]
[1736676790203,0.05474299,3246.2,3246.0,0.215655]
[1736676790520,0.7703,3246.3,3246.0,0.215655]
[1736676790702,0.05472866,3246.1,3246.0,0.215655]
[1736676791020,0.7703,3246.3,3246.0,0.215655]
[1736676791371,0.05474299,3246.2,3246.0,0.215655]
[1736676791578,0.7703,3246.3,3246.0,0.215655]
[1736676791774,0.05474299,3246.2,3246.1,0.2372205]
[1736676791974,0.7703,3246.3,3246.1,0.2372205]